Cogmind - Beta 15 @@@ ROGUE MODE // 2025.05.22 @ 22:42:53 Player: Sunvar Result: Destroyed by S-27 Virus with Autogun Performance ------------- Evolutions (5) 2500 Regions Visited (10) 2000 Robots Destroyed (110) 550 Value Destroyed (4183) 4183 Prototype IDs (23) 460 Alien Tech Used (0) 0 Bonus (3754) 3754 TOTAL SCORE: 13447 Bonus ------- High Alert Combat Kills 206 Follower Combat Kills 2081 Registered with UFD 300 Met Optimus in HQ 500 Built Enhanced Grunts 300 Met R17 at Cetus 500 Friendly Fire -133 Cogmind --------- Core Integrity 0/1000 Matter 11/300 Energy 97/100 System Corruption 16% Temperature Cool (6) Movement Flying (32) Location -5/Factory Parts ------- > --- POWER (2) -------- (None) > --- PROPULSION (5) --- Nuclear Pulse Thruster Diametric Drive > --- UTILITY (7) ------ (None) > --- WEAPON (3) ------- Enhanced Coil Gun > --- INVENTORY (5) ---- Advanced Targeting Computer Long-range Proton Cannon Improved Plasma Cutter Peak State ------------ > --- POWER ------------ Micro Antimatter Reactor Compact Particle Reactor > --- PROPULSION ------- Medium Treads Centrium Heavy Treads Centrium Heavy Treads > --- UTILITY ---------- Advanced Heat Sink Improved Cooling System Large Storage Unit Advanced Sensor Array Advanced Targeting Computer Centrium Medium Armor Plating Medium Regenerative Plating > --- WEAPON ----------- Enhanced Coil Gun Advanced KE Penetrator Advanced KE Penetrator > --- INVENTORY -------- Quantum Reactor Centrium Heavy Treads Advanced Cooling System Advanced Energy Well Advanced Targeting Computer Advanced Targeting Computer Improved Medium Armor Plating Improved Hacking Suite Heavy Plasma Cannon Enhanced Coil Gun Enhanced Coil Gun Enhanced Coil Gun Heavy Missile Launcher Power Sword [Rating: 123] Favorites ----------- Power Deuterium Engine Engine Deuterium Engine Power Core Light Fission Core Reactor Compact Particle Reactor Propulsion Light Treads Treads Light Treads Leg Flexi-carbon Leg Wheel Armored Wheel Hover Unit Gravmag System Flight Unit Diametric Drive Utility Large Storage Unit Device Improved Cooling System Storage Large Storage Unit Processor Advanced Targeting Computer Protection Improved Medium Armor Plating Weapon Power Sword Energy Gun Gatling Laser Energy Cannon Subdweller Beam Cannon Ballistic Gun Advanced KE Penetrator Launcher Grenade Launcher Special Weapon CPS Tube Slashing Weapon Power Sword Special Melee Weapon Improved Datajack Build | -11 -10 -10 -8 -8 -6 -6 -6 -6 -6 -5 ------- Run | Yrd Mat Sub Rec Scr Fac Ext Cet Arc Hub Fac Slots Evolved 10 | . . . . . 8 . . . . 2 Power 1 | . . . . . 1 . . . . . Propulsion 3 | . . . . . 2 . . . . 1 Utility 5 | . . . . . 4 . . . . 1 Weapon 1 | . . . . . 1 . . . . . Parts Attached 134 | 8 11 8 4 8 21 33 12 2 4 23 Power 20 | 1 2 2 1 1 4 7 2 . . . Engine 14 | 1 2 2 1 . 1 7 . . . . Core 4 | . . . . 1 3 . . . . . Reactor 2 | . . . . . . . 2 . . . Propulsion 35 | 2 3 2 . 4 5 9 2 . 1 7 Treads 25 | 2 3 2 . 2 4 8 2 . 1 1 Leg 1 | . . . . . . . . . . 1 Wheel 2 | . . . . 2 . . . . . . Hover 1 | . . . . . 1 . . . . . Flight 6 | . . . . . . 1 . . . 5 Utility 39 | 2 4 . 2 1 5 11 5 1 . 8 Device 20 | 1 1 . 1 . 4 6 2 1 . 4 Storage 4 | 1 2 . . . . . 1 . . . Processor 4 | . . . . . 1 . . . . 3 Hackware . | . . . . . . . . . . . Protection 11 | . 1 . 1 1 . 5 2 . . 1 Artifact . | . . . . . . . . . . . Weapon 40 | 3 2 4 1 2 7 6 3 1 3 8 Energy Gun 12 | 1 2 1 . . 2 3 1 . . 2 Energy Cannon 5 | . . 1 . . 3 . . . . 1 Ballistic Gun 18 | 2 . 1 . . 2 3 1 1 3 5 Ballistic Cannon . | . . . . . . . . . . . Launcher 1 | . . 1 . . . . . . . . Special Weapon 1 | . . . . . . . 1 . . . Impact Weapon . | . . . . . . . . . . . Slashing Weapon 2 | . . . 1 1 . . . . . . Piercing Weapon . | . . . . . . . . . . . Special Melee Weapon 1 | . . . . 1 . . . . . . Unidentified Prototypes 11 | . . . . . . . 5 . 1 5 Corrupted Parts 4 | . . . . . . . 1 . 3 . System Corruption 23 | . . . . . . . 7 . 16 . Parts Lost 51 | . 3 6 . . 6 19 5 . . 12 Power 9 | . 2 1 . . 1 5 . . . . Propulsion 16 | . . 2 . . 2 6 3 . . 3 Utility 13 | . . 2 . . 1 5 . . . 5 Weapon 13 | . 1 1 . . 2 3 2 . . 4 Highest Loss Streak 8 | . 1 2 . . 4 6 5 . . 8 To Critical Strikes 1 | . . . . . . 1 . . . . Average Backups 13 | 4 13 14 14 14 13 14 14 13 13 12 Power 1 | . 1 2 3 1 1 . 1 1 1 . Propulsion 2 | 3 3 3 2 2 1 2 1 2 2 1 Utility 3 | . 3 3 3 3 2 3 3 3 5 5 Weapon 5 | . 4 5 5 5 6 6 8 6 5 5 Tool/Special . | . . . . . . . . . . . Unused Backups 46 | . 6 3 3 12 1 4 7 2 . 8 Power 10 | . . 3 . 4 . . 2 . . 1 Propulsion 8 | . 3 . . 4 . 1 . . . . Utility 9 | . 2 . . . . 2 1 1 . 3 Weapon 18 | . 1 . 3 4 1 1 4 1 . 3 Tool/Special 1 | . . . . . . . . . . 1 Average Slot Usage (%) 93 | . 97 99 99 99 90 94 85 86 86 76 Engine 9 | . 13 14 14 10 4 10 8 . . . Core 1 | . . . . 3 7 2 . . . . Reactor 2 | . . . . . . . 4 13 13 9 Treads 21 | . 28 28 28 27 12 17 18 13 13 11 Wheel 2 | . . . . . 13 4 . . . . Device 13 | . 10 10 6 11 11 20 18 20 20 13 Storage 9 | . 14 14 14 14 6 6 6 6 6 4 Processor 1 | . . . . . 5 4 . . . 4 Protection 5 | . 2 2 6 2 5 5 8 13 13 11 Energy Gun 7 | . 13 12 . . 8 9 11 6 6 2 Energy Cannon 3 | . . 1 14 6 3 3 . . . . Ballistic Gun 6 | . 14 13 5 . 1 3 7 13 10 10 Slashing Weapon 4 | . . . 8 14 4 . . . 2 1 Special Melee Weapon 1 | . . . . 7 . 1 . . . . Peak Build Rating 123 | 7 9 14 16 26 57 60 105 107 112 123 Average Rating 43 | 5 8 11 14 21 49 52 79 105 107 105 On Entrance 45 | . 7 9 12 14 26 55 60 105 104 112 Naked Turns 19 | . . . . . . . . . . 19 Heaviest Build 86 | 12 33 38 42 41 65 82 86 72 75 82 Greatest Support 188 | 40 40 40 40 46 24 100 160 160 160 188 Greatest Overweight (x) 4 | . . . 1 1 2 4 1 . . . Average Overweight (x) . | . . . . . 2 1 . . . . Largest Inventory Capacity 15 | 8 15 15 15 15 15 15 15 15 15 15 Average Capacity 14 | 7 14 15 15 15 15 15 15 15 15 13 Most Carried 15 | 7 15 15 15 15 15 15 15 15 15 15 Average Carried 14 | 4 13 14 14 14 13 14 14 14 14 13 Final Capacity 15 | 8 15 15 15 15 15 15 15 15 15 5 Final Carried 15 | 6 15 15 15 15 15 15 15 15 15 3 Class Distribution -------------------- 55% | Mutant 21% | Scavenger-Tank 8% | Scavenger-Mutant 5% | Gunner 3% | Scavenger-Gunner 3% | Derelict-Mutant Dominant Class ---------------- Mutant | -10/Materials Mutant | -10/Subcaves Mutant | -8/Recycling Mutant | -8/Scraptown Mutant | -6/Factory Scavenger-Tank | -6/Extension Scavenger-Tank | -6/Cetus Scavenger-Tank | -6/Archives Scavenger-Tank | -6/Hub_04(d) Scavenger-Tank | -5/Factory Resources | -11 -10 -10 -8 -8 -6 -6 -6 -6 -6 -5 ----------- Run | Yrd Mat Sub Rec Scr Fac Ext Cet Arc Hub Fac Matter Collected 3542 | 165 652 171 81 80 422 890 212 56 196 617 Remotely . | . . . . . . . . . . . Salvage Created 4890 | 57 532 134 . . 559 2073 21 . 282 1232 Parts 223 | 4 33 12 . . 27 77 1 . 12 57 Haulers Intercepted 7 | . 2 . . . . 1 . . 2 2 Recyclers Shooed 5 | 1 2 . . . 1 1 . . . . Parts Field Recycled . | . . . . . . . . . . . Retrieved Matter . | . . . . . . . . . . . Parts Self-Destructed 3 | . . 3 . . . . . . . . Prevented . | . . . . . . . . . . . Kills | -11 -10 -10 -8 -8 -6 -6 -6 -6 -6 -5 ------- Run | Yrd Mat Sub Rec Scr Fac Ext Cet Arc Hub Fac Combat Hostiles Destroyed 78 | . 9 5 . . 14 29 . . 1 20 Melee 1 | . 1 . . . . . . . . . Guns 54 | . 8 2 . . 7 16 . . 1 20 Cannons 12 | . . . . . 2 10 . . . . AOE 9 | . . 3 . . 5 1 . . . . Classes Destroyed 16 | 1 5 2 . . 3 4 . . 1 . Worker 3 | . . . . . . . . . 1 2 Builder 4 | . . . . . . 3 . . . 1 Tunneler 4 | 2 1 . . . 1 . . . . . Hauler 7 | . 2 . . . . 1 . . 2 2 Recycler 5 | . 1 . . . . 4 . . . . Operator 1 | . . . . . . 1 . . . . Turret 2 | . . 2 . . . . . . . . Watcher 5 | . 3 . . . . 1 1 . . . Swarmer 24 | . 4 3 . . 4 8 . . . 5 Grunt 23 | . 5 . . . 6 9 . . . 3 Brawler 3 | . . . . . . 1 . . . 2 Sentry 10 | . . . . . 1 7 . . 1 1 Hunter 6 | . . . . . 2 2 . . . 2 Programmer 8 | . . . . . 1 . . . . 7 Behemoth 2 | . . . . . . 2 . . . . Subdweller 2 | . . 2 . . . . . . . . Savage 1 | . . . . . . 1 . . . . Best Kill Streak 15 | 2 3 3 . . 4 7 1 . 2 15 Combat Bots Only 8 | . 3 3 . . 4 5 . . 1 8 Max Kills in Single Turn 3 | 1 2 3 . . 2 2 1 . 1 2 Gunslinging 1 | . 1 . . . 1 . . . . 1 Exploded 3 | . . 3 . . 2 1 . . . . Melee 1 | . 1 . . . . . . . . . Uniques/NPCs Destroyed . | . . . . . . . . . . . Combat | -11 -10 -10 -8 -8 -6 -6 -6 -6 -6 -5 -------- Run | Yrd Mat Sub Rec Scr Fac Ext Cet Arc Hub Fac Hostile Shots Fired 1036 | . 80 90 . . 104 344 41 . 22 355 Missed 314 | . 16 30 . . 32 118 13 . 8 97 Hits 722 | . 64 60 . . 72 226 28 . 14 258 Melee 1 | . . . . . . 1 . . . . Projectile 721 | . 64 60 . . 72 225 28 . 14 258 AOE 1 | . . 1 . . . . . . . . Critical Strikes 25 | . . 1 . . 1 5 8 . . 10 Part Disruptions 3 | . . . . . 1 . . . . 2 Damage Taken 11906 | . 653 947 . . 1146 3108 801 24 264 4963 Core 1711 | . 105 131 . . 126 288 42 . 6 1013 Absorbed by Shields 397 | . . . . . . 226 113 . . 58 Reduced by Siege Mode 256 | . . . . . . . . . . 256 Regen/Repaired (Parts) 449 | . 87 . . . 174 . 37 . . 151 Core Remaining (%) 50 | 100 . . . 5 . . . . 45 . Volleys Fired 295 | 4 56 32 1 . 46 77 11 2 10 56 Largest 3 | 2 2 2 1 . 3 3 3 3 3 3 Hottest 229 | 60 85 110 80 . 200 229 189 125 139 145 Shots Fired 705 | 8 111 56 1 . 90 223 29 6 31 150 Gun 572 | 8 111 46 . . 53 138 29 6 31 150 Cannon 126 | . . 8 1 . 34 83 . . . . Launcher 7 | . . 2 . . 3 2 . . . . Special . | . . . . . . . . . . . Kinetic 346 | 4 56 30 . . 21 66 9 4 20 136 Thermal 339 | 4 55 24 1 . 60 155 20 2 11 7 Explosive 7 | . . 2 . . 3 2 . . . . Electromagnetic 13 | . . . . . 6 . . . . 7 Robot Hit Streak 21 | 4 8 16 . . 13 21 10 4 8 19 Robot Miss Streak 7 | 1 6 2 . . 3 7 3 2 3 6 Penetration Max 1 | . . . . . . . 1 . 1 1 Secondary Targets 12 | . 1 . . . 3 2 . . . 6 Max Gunslinging Chain 1 | . 1 . . . 1 1 . . . 1 Shots Hit Robots 508 | 5 67 40 . . 57 187 22 5 20 105 Core Hits 301 | 3 26 11 . . 57 130 8 2 10 54 Critical Kills 9 | . . . . . . 1 . . . 8 Critical Parts Destroyed 12 | . . . . . . . 1 . . 11 Critical Strikes 33 | . 3 2 . . 1 2 3 . 2 20 Burn 9 | . 3 1 . . . 1 2 . 2 . Meltdown 1 | . . . . . . 1 . . . . Destroy 22 | . . 1 . . . . 1 . . 20 Corrupt 1 | . . . . . 1 . . . . . Melee Attacks 66 | . . . 5 . 20 29 . . 1 11 Impact . | . . . . . . . . . . . Slashing 37 | . . . 5 . 20 . . . 1 11 Piercing . | . . . . . . . . . . . Sneak Attacks 30 | . . . . . . 29 . . . 1 Combat Hostiles . | . . . . . . . . . . . Follow-up Attacks . | . . . . . . . . . . . Damage Inflicted 12414 | 56 979 834 . . 1639 4463 566 118 467 3292 Guns 9223 | 56 945 546 . . 1082 2332 566 118 462 3116 Cannons 2254 | . . 78 . . 230 1946 . . . . Explosions 777 | . . 210 . . 327 185 . . . 55 Melee 121 | . . . . . . . . . . 121 Ramming 39 | . 34 . . . . . . . 5 . Kinetic 5621 | 25 421 328 . . 337 974 140 100 308 2988 Thermal 5770 | 31 524 296 . . 843 3304 426 18 154 174 Explosive 675 | . . 210 . . 280 185 . . . . Electromagnetic 188 | . . . . . 179 . . . . 9 Impact . | . . . . . . . . . . . Slashing 121 | . . . . . . . . . . 121 Piercing . | . . . . . . . . . . . Highest Corruption 31 | . 1 1 1 . 2 8 15 15 31 16 Average Corruption 4 | . 1 1 1 . 1 4 13 15 17 6 Corruption Purged . | . . . . . . . . . . . Corruption Blocked . | . . . . . . . . . . . Effects 128 | . 13 3 2 . 6 39 27 7 22 9 Message Errors 35 | . 3 1 1 . 2 8 8 . 8 4 Matter Fused 28 | . 5 1 1 . . 5 4 3 6 3 Heat Flow Errors 13 | . . . . . 2 7 2 . 2 . Energy Discharges 12 | . . . . . . 6 2 3 . 1 Parts Rejected 1 | . . . . . 1 . . . . . Data Loss (minor) 17 | . 1 . . . . 5 5 1 4 1 Data Loss (major) 5 | . . . . . 1 2 1 . 1 . Misfires 4 | . 1 . . . . 1 1 . 1 . Alerts 6 | . 1 1 . . . 3 1 . . . Misdirections 1 | . . . . . . . 1 . . . Weapon Failures 6 | . 2 . . . . 2 2 . . . Overload Shots . | . . . . . . . . . . . Overflow Damage 69 | . . 35 . . 17 1 . . . 16 Projectiles 18 | . . . . . 17 1 . . . . Explosions 35 | . . 35 . . . . . . . . Melee 16 | . . . . . . . . . . 16 Knockbacks 1 | . 1 . . . . . . . . . Impact 1 | . 1 . . . . . . . . . Kinetic . | . . . . . . . . . . . Secondary . | . . . . . . . . . . . Self-Inflicted Damage 102 | . . . . . 31 5 . . . 66 Shots 4 | . . . . . 2 1 . . . 1 Rammed 11 | . 10 . . . . . . . 1 . Targets Rammed 11 | . 10 . . . . . . . 1 . Kicked . | . . . . . . . . . . . Crushed . | . . . . . . . . . . . Highest Temperature 361 | 40 361 24 14 . 204 130 83 . 120 . Average Temperature 55 | 22 65 4 10 . 61 46 20 . 52 . Received Heat Transfer 1689 | . 219 162 . . 255 640 71 . 84 258 Effects 1 | . 1 . . . . . . . . . Damage (minor) 1 | . 1 . . . . . . . . . Siege Activations 2 | . . . . . . . . . . 2 Total Turns 55 | . . . . . . . . . . 55 Longest Duration 28 | . . . . . . . . . . 28 Martial Activations . | . . . . . . . . . . . Shielding Activations . | . . . . . . . . . . . Robots Disrupted . | . . . . . . . . . . . Combat Hostiles . | . . . . . . . . . . . Robots Corrupted . | . . . . . . . . . . . Combat Hostiles . | . . . . . . . . . . . Parts Fried 2 | . . . . . 1 1 . . . . Impact Corruptions . | . . . . . . . . . . . Robots Melted 2 | . . . . . . 2 . . . . Combat Hostiles 2 | . . . . . . 2 . . . . Parts Melted 20 | . 3 1 . . 4 11 . . 1 . Heat Transferred 11451 | 75 1482 740 . . 1825 5604 961 37 444 283 Parts Sabotaged . | . . . . . . . . . . . Parts Stolen . | . . . . . . . . . . . Parts Stripped . | . . . . . . . . . . . Power Chain Reactions . | . . . . . . . . . . . Alert | -11 -10 -10 -8 -8 -6 -6 -6 -6 -6 -5 ------- Run | Yrd Mat Sub Rec Scr Fac Ext Cet Arc Hub Fac Maximum Alert Level 3 | . . . . . . 2 1 . 2 3 Low Security (%) 74 | 100 100 . 100 . 100 90 26 100 38 10 Level 1 15 | . . . . . . 3 73 . 10 54 Level 2 9 | . . . . . . 5 . . 51 28 Level 3 . | . . . . . . . . . . 5 Level 4 . | . . . . . . . . . . . Level 5 . | . . . . . . . . . . . High Security . | . . . . . . . . . . . Max Security . | . . . . . . . . . . . Peak Influence 893 | 10 85 . 81 . 126 530 301 157 629 893 Initial 303 | . . . 81 . . 28 292 67 33 303 Average 137 | . 12 . 27 . 61 86 225 115 348 392 Influence Increases 5273 | 10 324 205 71 . 459 1332 304 160 1214 1194 Destroy 0b10 Robot/C 2440 | . 180 100 . . 280 800 160 80 440 400 Destroy 0b10 Robot/NC 190 | 10 35 . . . 5 55 10 . 50 25 Destroy Leader 378 | . 40 . . . 50 94 . . 110 84 Allied During Kill 912 | . . . . . . 268 127 80 427 10 Successful Hack 98 | . 23 . 5 . 9 45 . . 16 . Select Force Hacks 90 | . 30 . 60 . . . . . . . Disable Machine 435 | . . . . . 60 30 . . 120 225 Destroy Structure 265 | . 1 . 6 . 40 25 7 . 36 150 Partial Spotted 15 | . . . . . . . . . . 15 Lose Combat Pursuer 450 | . 15 105 . . 15 15 . . 15 285 Influence Decreases 4380 | 10 324 34 242 . 400 867 660 231 690 922 Entered New Map 836 | . . . 90 . . 31 232 101 64 318 Time Decay 2425 | 10 308 24 152 . 340 513 278 90 246 464 Lost Part 431 | . 16 10 . . 60 175 50 . . 120 Lost Ally 388 | . . . . . . 148 100 40 80 20 Purge Threat 300 | . . . . . . . . . 300 . Squads Dispatched 27 | . 3 . . . 3 3 . . 4 14 Investigation 12 | . 2 . . . 2 2 . . 1 5 Extermination 3 | . . . . . 1 . . . . 2 Reinforcement 7 | . 1 . . . . 1 . . 3 2 Assault . | . . . . . . . . . . . Garrison 5 | . . . . . . . . . . 5 Intercept . | . . . . . . . . . . . Searches Triggered . | . . . . . . . . . . . Construction Impeded 1 | . . . . . . . . . 1 . Haulers Reinforced 2 | . . . . . . . . . 1 1 Active Scanning Responses . | . . . . . . . . . . . Cargo Convoy Interrupts 1 | . . . . . . . . . . 1 Stealth | -11 -10 -10 -8 -8 -6 -6 -6 -6 -6 -5 --------- Run | Yrd Mat Sub Rec Scr Fac Ext Cet Arc Hub Fac Distress Signals 10 | . . . . . 1 . 3 . 4 2 Communications Jammed . | . . . . . . . . . . . Distress Signals . | . . . . . . . . . . . Times Spotted 181 | . 23 14 . . 19 43 10 5 8 59 Peak Tracking Total 19 | . 6 6 . . 4 5 5 2 3 19 Tactical Retreats 13 | . 1 3 . . 1 1 . . 1 6 Traps | -11 -10 -10 -8 -8 -6 -6 -6 -6 -6 -5 ------- Run | Yrd Mat Sub Rec Scr Fac Ext Cet Arc Hub Fac Traps Triggered 15 | . 3 4 . . . 7 . . . 1 Indirectly . | . . . . . . . . . . . Trap Hack Attempts 3 | . . . . . . 3 . . . . Triggered . | . . . . . . . . . . . Disarmed . | . . . . . . . . . . . Reprogrammed 7 | . 6 . . . . 1 . . . . Reused . | . . . . . . . . . . . Traps Extracted . | . . . . . . . . . . . Installed . | . . . . . . . . . . . Triggered . | . . . . . . . . . . . Machines | -11 -10 -10 -8 -8 -6 -6 -6 -6 -6 -5 ---------- Run | Yrd Mat Sub Rec Scr Fac Ext Cet Arc Hub Fac Machines Disabled 34 | . . 1 . . 4 6 . . 8 15 Max in Single Turn 4 | . . 1 . . 2 1 . . 1 4 Garrison Access 1 | . . . . . 1 . . . . . Machines Repaired . | . . . . . . . . . . . Machines Dismantled . | . . . . . . . . . . . Machines Sabotaged . | . . . . . . . . . . . Overloaded Fab Kills . | . . . . . . . . . . . Hacking | -11 -10 -10 -8 -8 -6 -6 -6 -6 -6 -5 --------- Run | Yrd Mat Sub Rec Scr Fac Ext Cet Arc Hub Fac Machines Accessed 56 | . 9 2 5 3 8 13 3 . 5 8 Terminals 37 | . 7 . 3 . 4 12 3 . 5 3 Fabricators . | . . . . . . . . . . . Repair Stations 2 | . 1 . . . 1 . . . . . Recycling Units 11 | . 1 . 2 . 2 1 . . . 5 Scanalyzers . | . . . . . . . . . . . Garrison Access 1 | . . . . . 1 . . . . . Total Hacks 117 | . 35 3 7 11 15 20 3 . 11 12 Successful 66 | . 21 3 3 11 11 8 . . 4 5 Failed 51 | . 14 . 4 . 4 12 3 . 7 7 Catastrophic 11 | . . . . . 2 3 2 . 2 2 Database Lockouts . | . . . . . . . . . . . Manual 47 | . 14 . 5 . 7 5 1 . 3 12 Terminals 77 | . 28 . 5 . 7 19 3 . 11 4 Fabricators . | . . . . . . . . . . . Repair Stations 10 | . 6 . . . 4 . . . . . Recycling Units 15 | . 1 . 2 . 3 1 . . . 8 Scanalyzers . | . . . . . . . . . . . Garrison Access 1 | . . . . . 1 . . . . . Terminal Hacks 34 | . 9 3 1 11 1 5 . . 4 . Record 4 | . . 2 . 2 . . . . . . Robot Analysis 9 | . 1 . . 8 . . . . . . Prototype ID Bank 2 | . 2 . . . . . . . . . Open Door 6 | . . 1 . . . 5 . . . . Recycling Unit Index 2 | . 1 . . . 1 . . . . . Unreport Threat 2 | . . . . . . . . . 2 . Locate Traps 1 | . . . . . . . . . 1 . Reprogram Traps 1 | . 1 . . . . . . . . . Recall Investigation 1 | . 1 . . . . . . . . . Recall Reinforcements 1 | . 1 . . . . . . . . . Hauler Manifests 1 | . 1 . . . . . . . . . Registered Components 1 | . 1 . . . . . . . . . Zone Layout 2 | . . . 1 . . . . . 1 . Proto ID Catalog 1 | . . . . 1 . . . . . . Fabricator Hacks . | . . . . . . . . . . . Repair Station Hacks 7 | . 3 . . . 4 . . . . . Scan Component 4 | . 2 . . . 2 . . . . . Repair 3 | . 1 . . . 2 . . . . . Recycling Unit Hacks . | . . . . . . . . . . . Scanalyzer . | . . . . . . . . . . . Garrison Access Hacks 1 | . . . . . 1 . . . . . Seal Access 1 | . . . . . 1 . . . . . Unauthorized Hacks 24 | . 9 . 2 . 5 3 . . . 5 Terminals 14 | . 8 . . . 3 2 . . . 1 Botnet 8 | . 3 . . . 2 2 . . . 1 Skim 6 | . 5 . . . 1 . . . . . Fabricators . | . . . . . . . . . . . Repair Stations . | . . . . . . . . . . . Recycling Units 10 | . 1 . 2 . 2 1 . . . 4 Tunnel 3 | . 1 . 2 . . . . . . . Fedlink 7 | . . . . . 2 1 . . . 4 Scanalyzers . | . . . . . . . . . . . Garrison Access . | . . . . . . . . . . . Data Cores Recovered 1 | . . . . . . . . . 1 . Used . | . . . . . . . . . . . Hacking Detections 37 | . 8 . 2 . 6 8 3 . 5 5 Full Trace Events 3 | . . . . . . 1 . . 1 1 Feedback Events . | . . . . . . . . . . . Feedback Blocked . | . . . . . . . . . . . Robot Schematics Acquired . | . . . . . . . . . . . Robots Built . | . . . . . . . . . . . Authchips . | . . . . . . . . . . . Time . | . . . . . . . . . . . Total Robot Build Rating . | . . . . . . . . . . . Part Schematics Acquired . | . . . . . . . . . . . Parts Built . | . . . . . . . . . . . Authchips . | . . . . . . . . . . . Time . | . . . . . . . . . . . Total Part Build Rating . | . . . . . . . . . . . Parts Repaired 3 | . 1 . . . 2 . . . . . Time 114 | . 26 . . . 88 . . . . . Parts Recycled . | . . . . . . . . . . . Recycled Matter . | . . . . . . . . . . . Retrieved Matter . | . . . . . . . . . . . Retrieved Components . | . . . . . . . . . . . Parts Scanalyzed . | . . . . . . . . . . . Part Schematics Acquired . | . . . . . . . . . . . Parts Damaged . | . . . . . . . . . . . Bothacking | -11 -10 -10 -8 -8 -6 -6 -6 -6 -6 -5 ------------ Run | Yrd Mat Sub Rec Scr Fac Ext Cet Arc Hub Fac Used RIF Installer . | . . . . . . . . . . . Robots Hacked 2 | . . . . . . 2 . . . . Non-combat 2 | . . . . . . 2 . . . . Combat . | . . . . . . . . . . . Robot Hacks Applied 3 | . . . . . . 3 . . . . parse_system 1 | . . . . . . 1 . . . . no_distress 2 | . . . . . . 2 . . . . Relay Couplers Released 4 | . . . . . . . . . 4 . Programmers 4 | . . . . . . . . . 4 . Fabnet Peak Effective % . | . . . . . . . . . . . Robots Rewired 8 | . . . . . . 8 . . . . Allies Hacked . | . . . . . . . . . . . Hacks Repelled . | . . . . . . . . . . . Allies | -11 -10 -10 -8 -8 -6 -6 -6 -6 -6 -5 -------- Run | Yrd Mat Sub Rec Scr Fac Ext Cet Arc Hub Fac Total Allies 22 | . . . . . . 17 5 . . . Largest Group 10 | . . . . . . 9 10 7 5 1 Highest-Rated Group 757 | . . . . . . 417 757 531 475 91 Highest-Rated Ally 159 | . . . . . . 159 159 96 96 91 Total Orders . | . . . . . . . . . . . Ally Attacks 267 | . . . . . . 72 77 21 88 9 Total Damage 7241 | . . . . . . 1046 1838 804 3378 175 Kills 53 | . . . . . . 12 9 4 28 . Allies Corrupted 1 | . . . . . . 1 . . . . Allies Melted 2 | . . . . . . 1 . . 1 . Intel | -11 -10 -10 -8 -8 -6 -6 -6 -6 -6 -5 ------- Run | Yrd Mat Sub Rec Scr Fac Ext Cet Arc Hub Fac Active Infowar (turns) 4602 | 14 1159 746 . . 335 1305 . 2 243 798 Sensors 798 | . . . . . . . . . . 798 Seismic 3804 | 14 1159 746 . . 335 1305 . 2 243 . Robot Analysis Total 9 | . 1 . . 8 . . . . . . Derelict Logs Recovered 5 | . . . . 5 . . . . . . Drone Launches . | . . . . . . . . . . . Drone Recoveries . | . . . . . . . . . . . Exploration | -11 -10 -10 -8 -8 -6 -6 -6 -6 -6 -5 ------------- Run | Yrd Mat Sub Rec Scr Fac Ext Cet Arc Hub Fac Turns Passed 11141 | 138 1700 1035 464 2343 1075 1894 604 184 529 1175 Spaces Moved 5940 | 66 856 567 244 1462 528 820 268 86 287 756 Core 32 | 3 . . . . . . . . . 29 Treads 4595 | 63 856 567 244 1390 . 377 268 86 287 457 Legs . | . . . . . . . . . . . Wheels 1043 | . . . . 72 528 443 . . . . Hover . | . . . . . . . . . . . Flight 270 | . . . . . . . . . . 270 Fastest Speed 27 | 50 160 160 160 105 120 120 160 160 160 27 Average Speed 149 | 155 160 160 180 157 120 152 165 160 160 109 Slowest Speed 305 | 160 160 160 240 240 120 305 240 160 160 160 Overloaded Moves . | . . . . . . . . . . . Propulsion Burnouts . | . . . . . . . . . . . Robots Hopped 3 | . . . . . . . . . . 3 Potential Cave-ins 2 | . . 2 . . . . . . . . Cave-ins Triggered . | . . . . . . . . . . . Exploration Rate (%) 53 | 5 98 37 63 87 17 83 69 74 29 23 Regions Visited 10 Branch Regions 7 Pre-discovered Areas 6 | . 1 . 2 2 1 . . . . . Known Exits Taken 2 | . . 1 . 1 . . . . . . Unknown Exits Taken 8 | 1 1 . 1 . 1 1 1 1 1 . Scrap Searched 9 | . . 2 . 7 . . . . . . Spaces Dug 44 | . . . 5 . 25 . . . 1 13 Terrain Destroyed 174 | . . 13 6 . 51 27 . . 6 71 Melee 35 | . . . 5 . 20 . . . 1 9 Projectile 86 | . . . 1 . 26 20 . . 5 34 AOE 53 | . . 13 . . 5 7 . . . 28 Terrain Rammed . | . . . . . . . . . . . Walls Destroyed . | . . . . . . . . . . . Machines Disabled . | . . . . . . . . . . . Actions | -11 -10 -10 -8 -8 -6 -6 -6 -6 -6 -5 --------- Run | Yrd Mat Sub Rec Scr Fac Ext Cet Arc Hub Fac Total 7557 | 92 1080 638 263 1516 849 1279 413 134 331 962 Wait 752 | 1 95 9 . 3 197 247 86 31 21 62 Move 5924 | 65 855 566 243 1461 527 819 267 85 286 750 Hop 3 | . . . . . . . . . . 3 Pick Up 125 | 9 23 9 3 20 11 15 13 6 3 13 Fast Attach 64 | 6 6 1 1 1 8 17 9 . . 15 Attach 48 | 2 2 6 . 1 11 8 5 1 1 11 Detach 7 | 1 2 . 1 . 1 . . . . 2 Swap 100 | 2 10 9 3 7 21 25 2 2 5 14 Drop 134 | 2 21 6 6 23 7 22 20 7 3 17 Fire 295 | 4 56 32 1 . 46 77 11 2 10 56 Melee 66 | . . . 5 . 20 29 . . 1 11 Ram . | . . . . . . . . . . . Kick . | . . . . . . . . . . . Crush 11 | . 10 . . . . . . . 1 . Escape Stasis 25 | . . . . . . 17 . . . 8 Rewire . | . . . . . . . . . . . Trap 3 | . . . . . . 3 . . . . Miscellaneous . | . . . . . . . . . . . Route ------- -11/Scrapyard -10/Materials (discovered 5 exits: [*Mat x3] / [*Min] / *Sub) -10/Subcaves (discovered 3 exits: Mat x2 / *Rec) -8/Recycling (discovered 2 exits: Fac / *Scr) -8/Scraptown (discovered 2 exits: *Fac x2) -6/Factory (discovered 3 exits: *Fac / [*Low] / *Ext) -6/Extension (discovered 2 exits: *Fac / *Cet) -6/Cetus (discovered 2 exits: *Fac / [*Arc]) -6/Archives (discovered 3 exits: *Fac / *Hub x2) -6/Hub_04(d) -5/Factory History --------- Turn | Location | Event 26 | -11/Scrapyard | Discovered new exit (range 15) 139 | -11/Scrapyard | Entered Materials 307 | -10/Materials | Build established: Mutant 920 | -10/Materials | Discovered new exit (range 6) 1060 | -10/Materials | Discovered new exit (range 9) 1368 | -10/Materials | Discovered new exit (range 14) 1474 | -10/Materials | Repaired Lgt. Armor Plating 1546 | -10/Materials | Learned location of 1 exit from Recycling 1631 | -10/Materials | Discovered new exit (range 5) 1637 | -10/Materials | Learned Storage terminal intel 1667 | -10/Materials | Learned Storage terminal intel 1695 | -10/Materials | Loaded intel: 10 trap records 1823 | -10/Materials | Discovered new exit (range 11) 1839 | -10/Materials | Entered Subcaves 1840 | -10/Subcaves | Identified exit to Materials 1891 | -10/Subcaves | Visited Clippyterm 1895 | -10/Subcaves | Identified exit to Recycling 2190 | -10/Subcaves | Shifting Twisted Machinery released Mak. Power Source 2192 | -10/Subcaves | Shifting Twisted Machinery released Sub. Power Source 2336 | -10/Subcaves | Shifting Twisted Machinery released Sub. Power Source 2372 | -10/Subcaves | Build established: Scavenger-Mutant 2463 | -10/Subcaves | Core integrity fell below 50% 2741 | -10/Subcaves | Build established: Mutant 2802 | -10/Subcaves | Ambushed by Subdweller buried in earth 2803 | -10/Subcaves | Core integrity fell below 20% 2874 | -10/Subcaves | Entered Recycling 2875 | -8/Recycling | Identified exit to Factory 3300 | -8/Recycling | Scanned before Scraplab entrance 3322 | -8/Recycling | Entered Scraplab 3335 | -8/Recycling | Discovered new exit (range 3) 3338 | -8/Recycling | Entered Scraptown 3338 | -8/Scraptown | System corruption cleaned by C-Scrubber 3673 | -8/Scraptown | Scanned Subdweller tech in exchange for log data 3676 | -8/Scraptown | Learned Factory emergency access door positions 3677 | -8/Scraptown | Learned location of Zion (-7) 3679 | -8/Scraptown | Learned Factory stockpile data 3681 | -8/Scraptown | Learned Factory security intel 3682 | -8/Scraptown | Learned location of Warlord (-5) 3754 | -8/Scraptown | Discovered exit to Factory (range 13) 4127 | -8/Scraptown | Visited Assassins FH 4151 | -8/Scraptown | Visited Cyclists 4189 | -8/Scraptown | Visited IN-MT5's Study 4207 | -8/Scraptown | Visited Fellowship of the Rings 4239 | -8/Scraptown | Visited The Evicted 4268 | -8/Scraptown | Visited Bundlers 4393 | -8/Scraptown | Visited UFD Registry 4393 | -8/Scraptown | Registered with UFD as "Autotank" 4426 | -8/Scraptown | Visited Chapter 10 4476 | -8/Scraptown | Visited Analyses Database 4617 | -8/Scraptown | Visited Observation Area 4705 | -8/Scraptown | Delivered Scrap Shield to a Scientist 4841 | -8/Scraptown | Visited LU-1G1's Boring Crew 4861 | -8/Scraptown | Visited Derelict Rescue Squad 4884 | -8/Scraptown | Visited Junk Repository 4925 | -8/Scraptown | Visited Science Guys 4978 | -8/Scraptown | Visited Scrapoid Pod Storage 5007 | -8/Scraptown | Visited Curators Association 5063 | -8/Scraptown | Visited Scrapoid Research Area 5622 | -8/Scraptown | Met Optimus 5622 | -8/Scraptown | Accepted into 0bPrime 5676 | -8/Scraptown | Discovered exit to Factory (range 5) 5681 | -8/Scraptown | Entered Factory 5681 | -6/Factory | Evolved 8 slots: Power x1, Propulsion x2, Utility x4, Weapon x1 6046 | -6/Factory | Loaded intel: 8 recycling unit locations 6133 | -6/Factory | Repaired Imp. Medium Armor Plating 6181 | -6/Factory | Repaired Imp. Cooling System 6344 | -6/Factory | Lost 4 parts (1p1n2w) 6390 | -6/Factory | Discovered new exit (range 8) 6488 | -6/Factory | Discovered new exit (range 14) 6688 | -6/Factory | Discovered new exit (range 5) 6730 | -6/Factory | Learned location of Protoforge (-2) 6756 | -6/Factory | Entered Extension 7065 | -6/Extension | Rescued a captive Derelict 7067 | -6/Extension | Rescued a captive Derelict 7206 | -6/Extension | Lost 3 parts (1p1u1w) 7219 | -6/Extension | Build established: Gunner 7311 | -6/Extension | Rescued a captive Derelict 7313 | -6/Extension | Rescued a captive Derelict 7554 | -6/Extension | Build established: Derelict-Mutant 7756 | -6/Extension | Disrupted transfer network 7920 | -6/Extension | Build established: Scavenger-Gunner 8007 | -6/Extension | Spotted B-75 Beast 8031 | -6/Extension | Spotted B-75 Beast 8066 | -6/Extension | Destroyed B-75 Beast 8073 | -6/Extension | Lost 4 allies 8086 | -6/Extension | Destroyed B-75 Beast 8116 | -6/Extension | Lost 6 parts (1p3n1u1w) 8175 | -6/Extension | Lost 3 parts (2p1u) 8316 | -6/Extension | Rescued A7 8330 | -6/Extension | Rescued a captive Derelict 8333 | -6/Extension | Rescued a captive Derelict 8334 | -6/Extension | Build established: Scavenger-Tank 8344 | -6/Extension | Rescued a captive Derelict 8344 | -6/Extension | Rescued a captive Derelict 8523 | -6/Extension | Loaded intel: 1 recycling unit location 8587 | -6/Extension | Discovered new exit (range 11) 8589 | -6/Extension | Discovered new exit (range 7) 8592 | -6/Extension | Disrupted transfer network 8650 | -6/Extension | Entered Cetus 8650 | -6/Cetus | Accompanied by 7 allies (A7) 8655 | -6/Cetus | Acquired a Cetus Manufacturing Module code from A7 8672 | -6/Cetus | Spotted Cetus Guard 8673 | -6/Cetus | Spotted Cetus Guard 8675 | -6/Cetus | Core integrity fell below 50% 8675 | -6/Cetus | Spotted Cetus Guard 8675 | -6/Cetus | Spotted Cetus Guard 8692 | -6/Cetus | Allies destroyed Cetus Guard 8702 | -6/Cetus | Allies destroyed Cetus Guard 8714 | -6/Cetus | Allies destroyed Cetus Guard 8720 | -6/Cetus | Allies destroyed Cetus Guard 8743 | -6/Cetus | System corruption reached 10% 8745 | -6/Cetus | Lost 5 parts (3n2w) 8809 | -6/Cetus | Started Cetus Manufacturing Module 8834 | -6/Cetus | Manufactured an Enhanced Grunt 8859 | -6/Cetus | Manufactured an Enhanced Grunt 8884 | -6/Cetus | Manufactured an Enhanced Grunt 8909 | -6/Cetus | Manufactured an Enhanced Grunt 8934 | -6/Cetus | Manufactured an Enhanced Grunt 8961 | -6/Cetus | Discovered new exit (range 16) 9000 | -6/Cetus | Spotted Cetus Guard 9000 | -6/Cetus | Spotted Cetus Guard 9003 | -6/Cetus | Spotted Cetus Guard 9007 | -6/Cetus | Allies destroyed Cetus Guard 9014 | -6/Cetus | Spotted Cetus Guard 9015 | -6/Cetus | Allies destroyed Cetus Guard 9018 | -6/Cetus | Extracted ID and sensor layout for unrecognized location from A7's data core 9024 | -6/Cetus | Allies destroyed Cetus Guard 9026 | -6/Cetus | Allies destroyed Cetus Guard 9029 | -6/Cetus | Found Prototype Protection 9029 | -6/Cetus | Identified Med. Regenerative Plating 9043 | -6/Cetus | Lost 3 allies 9073 | -6/Cetus | Discovered new exit (range 15) 9084 | -6/Cetus | Met Revision 17 9254 | -6/Cetus | Entered Archives 9254 | -6/Archives | Accompanied by 7 allies 9323 | -6/Archives | Discovered new exit (range 14) 9377 | -6/Archives | Discovered new exit (range 15) 9392 | -6/Archives | Discovered new exit (range 16) 9438 | -6/Archives | Entered Hub_04(d) 9438 | -6/Hub_04(d) | Accompanied by 5 allies 9725 | -6/Hub_04(d) | Discovered new exit (range 15) 9900 | -6/Hub_04(d) | System corruption reached 30% 9967 | -6/Hub_04(d) | Entered Factory 9967 | -5/Factory | Accompanied by 1 ally 9967 | -5/Factory | Evolved 2 slots: Propulsion x1, Utility x1 10120 | -5/Factory | Loaded intel: 8 recycling unit locations 10562 | -5/Factory | Garrison activated, responded to threat 10798 | -5/Factory | Destroyed 8 combat bots 10960 | -5/Factory | Cargo convoy interrupted 10989 | -5/Factory | Garrison activated, responded to threat 10996 | -5/Factory | System corruption reached 10% 10996 | -5/Factory | Released all parts (15) 11002 | -5/Factory | Core integrity fell below 50% 11020 | -5/Factory | Core integrity fell below 20% 11053 | -5/Factory | Lost 8 parts (2n3u3w) 11099 | -5/Factory | Found Prototype Device 11099 | -5/Factory | Identified Exp. EM Disruption Field 11123 | -5/Factory | Lost 3 parts (1n1u1w) 11142 | -5/Factory | Destroyed by S-27 Virus with Autogun Last Messages --------------- 11085_ Pressure Siphon disabled. 11090_ K-01 Serf cleans the Assembly Bed. 11092_ Field Propulsion Drive destroyed. 11093_ Door malfunctions. 11094_ Assembly Bed disabled. 11096_ U-05 Engineer lays Concrete. 11098_ System corrupted: Energy discharge (-24). 11099_ Acquired Prototype Device. 11099_ Identified Exp. EM Disruption Field. 11101_ Acquired Prototype Device. 11101_ Identified Coolant Network. 11102_ Slug penetrates A-15 Conveyor. 11104_ R-10 Processor collects Imp. Target Analyzer. 11104_ Dropped Coolant Network. 11107_ Dropped Exp. EM Disruption Field. 11108_ K-01 Serf cleans the Assembly Bed. 11118_ 5R0J4 VQ,IRPQKDWAJ9HR 11118_ Critical hit (Burn: +37). 11122_ Acquired Nuclear Pulse Thruster. 11134_ #SH82 06H:2VKABLX#UN Map ----- +----------------------------------------------------+ | ?????????????????????????????????????????????????? | | ?????????????????????????????????????????????????? | | ?????????????????????????????????????????????????? | | ?????????????????????????????????????????????????? | | ?????????????????????????????????????????????????? | | ?????????????????????????????????????????????????? | | ?????????????????????????????????????????????????? | | ?????????????????????????????????????????????????? | | ?????????????????????????????????????????????????? | | ?????????????????????????????????????????????????? | | ?????????????????????????????????????????????????? | | ?????????????????????????????????????????????????? | | ?????????????????????????????????????????????????? | | ?????????????????????????????????????????????????? | | ?????????????????????????????????????????????????? | | ????????????????????????##############???????????? | | ????????????????????????# = #???????????? | | ????????????????????????# #???????????? | | ????????????????????????# s #???????????? | | ????????????????????????#s"""" """" #???????????? | | ????????????????????????# """" """" #???????????? | | ????????????????????????# """" """" #??? ????? | | ????????????????????????# """" """" #??? ??? | | ????????????????????????# """" """" #??? #? | | ????????????????????????#s"""" """" #??# #? | | ????????????????????????#@ #??# #? | | ????????????????????????# [ #?## ## | | ????????????????????????# #?# # | | ????????????????????????######p######### # | | ???????????????????????????# # | | ??????????????? ######## p # | | ??????????????? # | | ??????????????? # | | ?????????????????"T" T ? | | ???????????????? ####### ? | | ???????????????? """ !/= #?????? ? ? | | ???????????????? ?""" /= #########+#### #? | | ????????????????????""" /= # # #? | | ????????????????? + "" "" # #? | | ????????????????? """ # "" "" # ## | | ??????????????????? """ # """ """ # | | ?????????????????????"" ######## """ """ # | | ???????????????????? ???????# """ """ # | | ????????????????????""" ???????# + | | ????????????????????""" ????????# # | | ?????????????????????"" ?????????# # | | ?????????????????????????????????# = + | | ?????????????????????????????????# #### | | ?????????????????????????????????# #??? | | ?????????????????????????????????##############??? | +----------------------------------------------------+ Best States ------------- Heat Dissipation 116 Energy Generation 37 Energy Capacity 685 Matter Stores 300 Matter Capacity 300 Sight Range 16 Robot Scan Range 16 Terrain Scan Density 10 Armor Coverage 1350 Core Shielding 20 Evasion (%) 64 Targeting Accuracy 16 Recoil Reduction 5 Item Schematics ----------------- None Robot Schematics ------------------ None Fabricated ------------ Nothing Repaired ---------- Lgt. Armor Plating | 3% | -10/Materials Imp. Medium Armor Plating | 39% | -6/Factory Imp. Cooling System | 60% | -6/Factory Alien Tech Used ----------------- None Achievements -------------- None Challenges ------------ None Game ------ Seed RelayMatterInsulator Manual? 0 Play Time 02:12:44 Cumulative 166.3 hours Start 2025.05.20 @ 21:34:16 End 2025.05.22 @ 22:42:53 Sessions 7 Manual Loads 0 Difficulty Rogue Special Mode None Game No. 115 Rogue 115 Adventurer 0 Explorer 0 Win Type - Total 6 Types 5/0/1/0/0/0/0/0/0/0 Lore% 66 Gallery% 58 Achievement% 54 Wizard Run 0 Options --------- Layout 0 ASCII 0 Keyboard 1 Movement Numpad Keybinds 0 Fullscreen 1 Font 36/Proggy Map View 76x50 Zoom Use 0% Tactical HUD 1 Map Filters NONE Filters NONE Steam 1 RUN: 6514460b-ae80-4b74-8106-510f14b4cf80